fUST/lending_fUST_20240824
["ID","MTS","AMOUNT","RATE_DAILY","PERIOD"]
[335708391,1724457048058,-500.0,0.00013698,2]
[335708392,1724457048068,-1353.88,0.00013698,2]
[335708393,1724457048079,-858.53,0.00013698,2]
[335708394,1724457048088,-500.0,0.00013698,2]
[335708395,1724457048098,-963.25,0.00013698,2]
[335708396,1724457048107,-963.25,0.00013698,2]
[335708397,1724457048117,-963.25,0.00013698,2]
[335708398,1724457048126,-963.25,0.00013698,2]
[335708399,1724457048135,-500.0,0.00013698,2]
[335708400,1724457048145,-963.25,0.00013698,2]
[335708401,1724457048154,-963.25,0.00013698,2]
[335708402,1724457048164,-669.27,0.00013698,2]
[335708403,1724457048174,-963.25,0.00013698,2]
[335708404,1724457048334,-500.0,0.00013698,2]
[335708405,1724457048343,-963.25,0.00013698,2]
[335708406,1724457048353,-963.25,0.00013698,2]
[335708407,1724457048362,-963.25,0.00013698,2]
[335708408,1724457048371,-963.25,0.00013698,2]
[335708409,1724457048381,-963.25,0.00013698,2]
[335708410,1724457048391,-718.17,0.00013698,2]
[335708411,1724457048400,-963.25,0.00013698,2]
[335708412,1724457048410,-963.25,0.00013698,2]
[335708413,1724457048419,-963.25,0.00013698,2]
[335708414,1724457048429,-963.25,0.00013698,2]
[335708415,1724457048439,-963.25,0.00013698,2]
[335708416,1724457048448,-500.0,0.00013698,2]
[335708417,1724457048457,-963.25,0.00013698,2]
[335708418,1724457048468,-963.25,0.00013698,2]
[335708419,1724457048477,-963.25,0.00013698,2]
[335708420,1724457048486,-963.25,0.00013698,2]
[335708421,1724457048496,-963.25,0.00013698,2]
[335708422,1724457048505,-963.25,0.00013698,2]
[335708423,1724457048514,-963.46454106,0.00013698,2]
[335708424,1724457048523,-500.0,0.00013698,2]
[335708425,1724457048532,-500.0,0.00013698,2]
[335708426,1724457048541,-523.72,0.00013698,2]
[335708427,1724457048550,-500.0,0.00013698,2]
[335708428,1724457048560,-502.20397315,0.00013698,2]
[335708429,1724457048569,-500.0,0.00013698,2]
[335708430,1724457048581,-1006.43,0.00013698,2]
[335708431,1724457048590,-1050.15,0.00013698,2]
[335708432,1724457048599,-500.0,0.00013698,2]
[335708433,1724457048608,-967.34,0.00013698,2]
[335708434,1724457048618,-500.0,0.00013698,2]
[335708435,1724457048627,-934.72,0.00013698,2]
[335708436,1724457048637,-500.0,0.00013698,2]
[335708437,1724457048647,-500.0,0.00013698,2]
[335708438,1724457048657,-500.0,0.00013698,2]
[335708439,1724457048667,-500.0,0.00013698,2]
[335708440,1724457048676,-500.0,0.00013698,2]
[335708441,1724457048686,-500.0,0.00013698,2]
[335708442,1724457048697,-773.11,0.00013698,2]
[335708443,1724457048706,-1320.6,0.00013698,2]
[335708444,1724457048716,-500.0,0.00013698,2]
[335708445,1724457048726,-675.49,0.00013698,2]
[335708446,1724457048736,-500.0,0.00013698,2]
[335708447,1724457048745,-500.0,0.00013698,2]
[335708448,1724457048754,-500.0,0.00013698,2]
[335708449,1724457048764,-500.0,0.00013698,2]
[335708450,1724457048772,-500.0,0.00013698,2]
[335708451,1724457048782,-715.06,0.00013698,2]
[335708452,1724457048792,-1140.01,0.00013698,2]
[335708453,1724457048803,-500.0,0.00013698,2]
[335708454,1724457048813,-500.0,0.00013698,2]
[335708455,1724457048822,-500.0,0.00013698,2]
[335708456,1724457048833,-1253.01,0.00013698,2]
[335708457,1724457048843,-500.0,0.00013698,2]
[335708458,1724457048853,-2428.32,0.00013698,2]
[335708459,1724457048862,-500.0,0.00013698,2]
[335708460,1724457048874,-500.0,0.00013698,2]
[335708461,1724457048884,-500.0,0.00013698,2]
[335708462,1724457048894,-500.0,0.00013698,2]
[335708463,1724457048903,-500.0,0.00013698,2]
[335708464,1724457048912,-500.0,0.00013698,2]
[335708465,1724457048922,-500.0,0.00013698,2]
[335708466,1724457048931,-500.0,0.00013698,2]
[335708467,1724457048941,-500.0,0.00013698,2]
[335708468,1724457048951,-500.0,0.00013698,2]
[335708469,1724457048960,-1154.74,0.00013698,2]
[335708470,1724457048970,-2703.75,0.00013698,2]
[335708471,1724457048980,-3604.07,0.00013698,2]
[335708472,1724457048990,-500.0,0.00013698,2]
[335708473,1724457049000,-500.0,0.00013698,2]
[335708474,1724457049010,-500.0,0.00013698,2]
[335708475,1724457049019,-2951.36,0.00013698,2]
[335708476,1724457049029,-500.0,0.00013698,2]
[335708477,1724457049038,-500.0,0.00013698,2]
[335708478,1724457049048,-599.62,0.00013698,2]
[335708479,1724457049058,-718.64,0.00013698,2]
[335708480,1724457049066,-500.0,0.00013698,2]
[335708481,1724457049076,-1956.54,0.00013698,2]
[335708482,1724457049086,-2072.04,0.00013698,2]
[335708483,1724457049095,-928.93,0.00013698,2]
[335708484,1724457049106,-621.89,0.00013698,2]
[335708485,1724457049115,-542.41031267,0.00013698,2]
[335708486,1724457049124,-829.95,0.00013698,2]
[335708487,1724457049133,-500.0,0.00013698,2]
[335708488,1724457049142,-500.0,0.00013698,2]
[335708489,1724457049152,-1582.86,0.00013698,2]
[335708490,1724457049161,-1328.93,0.00013698,2]
[335708491,1724457049171,-500.0,0.00013698,2]
[335708492,1724457049180,-500.0,0.00013698,2]
[335708493,1724457049189,-500.0,0.00013698,2]
[335708494,1724457049198,-1083.06,0.00013698,2]
[335708495,1724457049208,-500.0,0.00013698,2]
[335708496,1724457049220,-500.0,0.00013698,2]
[335708497,1724457049230,-1781.72,0.00013698,2]
[335708498,1724457049239,-4653.92,0.00013698,2]
[335708499,1724457049248,-630.31,0.00013698,2]
[335708500,1724457049257,-1065.51,0.00013698,2]
[335708501,1724457049267,-500.0,0.00013698,2]
[335708502,1724457049276,-485.525918,0.00013698,2]
[335708503,1724457049285,-500.0,0.00013698,2]
[335708504,1724457049295,-500.0,0.00013698,2]
[335708505,1724457049304,-891.66,0.00013698,2]
[335708506,1724457049313,-500.0,0.00013698,2]
[335708507,1724457049322,-485.525918,0.00013698,2]
[335708508,1724457049333,-500.0,0.00013698,2]
[335708509,1724457049343,-573.08,0.00013698,2]
[335708510,1724457049353,-500.0,0.00013698,2]
[335708511,1724457049362,-1919.33,0.00013698,2]
[335708512,1724457049371,-500.0,0.00013698,2]
[335708513,1724457049381,-500.0,0.00013698,2]
[335708514,1724457049391,-500.0,0.00013698,2]
[335708515,1724457049401,-1453.06,0.00013698,2]
[335708516,1724457049410,-500.0,0.00013698,2]
[335708517,1724457049420,-766.35,0.00013698,2]
[335708518,1724457049429,-547.59399359,0.00013698,2]
[335708519,1724457049438,-500.0,0.00013698,2]
[335708520,1724457049448,-500.0,0.00013698,2]
[335708521,1724457049458,-963.08,0.00013698,2]
[335708522,1724457049467,-500.0,0.00013698,2]
[335708523,1724457049476,-500.0,0.00013698,2]
[335708524,1724457049485,-500.0,0.00013698,2]
[335708525,1724457049494,-500.0,0.00013698,2]
[335708526,1724457049503,-640.21,0.00013698,2]
[335708527,1724457049512,-1947.12,0.00013698,2]
[335708528,1724457049521,-500.0,0.00013698,2]
[335708529,1724457049531,-500.0,0.00013698,2]
[335708530,1724457049540,-1769.05,0.00013698,2]
[335708531,1724457049550,-995.08,0.00013698,2]
[335708532,1724457049561,-500.0,0.00013698,2]
[335708533,1724457049571,-500.0,0.00013698,2]
[335708534,1724457049582,-150.0,0.00013698,2]
[335708535,1724457049599,-500.0,0.00013698,2]
[335708536,1724457049608,-500.0,0.00013698,2]
[335708537,1724457049618,-500.0,0.00013698,2]
[335708538,1724457049627,-788.3,0.00013698,2]
[335708539,1724457049636,-945.47,0.00013698,2]
[335708540,1724457049646,-500.0,0.00013698,2]
[335708541,1724457049655,-500.0,0.00013698,2]
[335708542,1724457049665,-518.2226124,0.00013698,2]
[335708543,1724457049674,-500.0,0.00013698,2]
[335708544,1724457049683,-500.0,0.00013698,2]
[335708545,1724457049693,-500.0,0.00013698,2]
[335708546,1724457049702,-500.0,0.00013698,2]
[335708547,1724457049712,-500.0,0.00013698,2]
[335708548,1724457049721,-500.0,0.00013698,2]
[335708549,1724457049730,-517.94904243,0.00013698,2]
[335708550,1724457049739,-1518.4,0.00013698,2]
[335708551,1724457049750,-500.0,0.00013698,2]
[335708552,1724457049761,-500.0,0.00013698,2]
[335708553,1724457049771,-501.48782497,0.00013698,2]
[335708554,1724457049781,-500.0,0.00013698,2]
[335708555,1724457049791,-500.0,0.00013698,2]
[335708556,1724457049800,-509.13193573,0.00013698,2]
[335708557,1724457049809,-500.0,0.00013698,2]
[335708558,1724457049819,-500.0,0.00013698,2]
[335708559,1724457049832,-500.0,0.00013698,2]
[335708560,1724457049842,-500.0,0.00013698,2]
[335708561,1724457049851,-500.0,0.00013698,2]
[335708562,1724457049861,-500.0,0.00013698,2]
[335708563,1724457049871,-500.0,0.00013698,2]
[335708564,1724457049880,-500.0,0.00013698,2]
[335708565,1724457049891,-500.0,0.00013698,2]
[335708566,1724457049900,-500.0,0.00013698,2]
[335708567,1724457049909,-500.0,0.00013698,2]
[335708568,1724457049919,-500.0,0.00013698,2]
[335708569,1724457049929,-500.0,0.00013698,2]
[335708570,1724457049939,-500.0,0.00013698,2]
[335708571,1724457049948,-500.0,0.00013698,2]
[335708572,1724457049958,-500.0,0.00013698,2]
[335708573,1724457049969,-500.0,0.00013698,2]
[335708574,1724457049978,-739.71,0.00013698,2]
[335708575,1724457049988,-500.0,0.00013698,2]
[335708576,1724457049998,-443.96928951,0.00013698,2]
[335708577,1724457050009,-4798.65,0.00013698,2]
[335708578,1724457050019,-502.45284766,0.00013698,2]
[335708579,1724457050029,-500.0,0.00013698,2]
[335708580,1724457050039,-1836.93,0.00013698,2]
[335708581,1724457050049,-1302.97,0.00013698,2]
[335708582,1724457050058,-818.35,0.00013698,2]
[335708583,1724457050070,-425.1389994,0.00013698,2]
[335708584,1724457050084,-894.3,0.00013698,2]
[335708585,1724457050094,-500.0,0.00013698,2]
[335708586,1724457050103,-500.0,0.00013698,2]
[335708587,1724457050112,-500.0,0.00013698,2]
[335708588,1724457050122,-500.0,0.00013698,2]
[335708589,1724457050132,-769.73,0.00013698,2]
[335708590,1724457050142,-500.0,0.00013698,2]
[335708591,1724457050151,-500.0,0.00013698,2]
[335708592,1724457050161,-634.72,0.00013698,2]
[335708593,1724457050170,-500.0,0.00013698,2]
[335708594,1724457050180,-500.0,0.00013698,2]
[335708595,1724457050190,-2250.09,0.00013698,2]
[335708596,1724457050199,-878.42,0.00013698,2]
[335708597,1724457050208,-591.51,0.00013698,2]
[335708598,1724457050218,-500.0,0.00013698,2]
[335708599,1724457050229,-999.28,0.00013698,2]
[335708600,1724457050238,-500.0,0.00013698,2]
[335708601,1724457050248,-500.0,0.00013698,2]
[335708602,1724457050257,-6667.64,0.00013698,2]
[335708603,1724457050267,-500.0,0.00013698,2]
[335708604,1724457050276,-615.78,0.00013698,2]
[335708605,1724457050286,-372.4301339,0.00013698,2]
[335708606,1724457050296,-500.0,0.00013698,2]
[335708607,1724457050306,-1506.11,0.00013698,2]
[335708608,1724457050315,-500.0,0.00013698,2]
[335708609,1724457050324,-500.0,0.00013698,2]
[335708610,1724457050335,-500.0,0.00013698,2]
[335708611,1724457050344,-861.87,0.00013698,2]
[335708612,1724457050354,-500.0,0.00013698,2]
[335708613,1724457050363,-500.0,0.00013698,2]
[335708614,1724457050372,-500.0,0.00013698,2]
[335708615,1724457050382,-3278.72,0.00013698,2]
[335708616,1724457050391,-583.75,0.00013698,2]
[335708617,1724457050400,-3836.89,0.00013698,2]
[335708618,1724457050409,-500.0,0.00013698,2]
[335708619,1724457050419,-630.7,0.00013698,2]
[335708620,1724457050428,-500.0,0.00013698,2]
[335708621,1724457050438,-500.0,0.00013698,2]
[335708622,1724457050447,-500.0,0.00013698,2]
[335708623,1724457050457,-500.0,0.00013698,2]
[335708624,1724457050466,-1050.05,0.00013698,2]
[335708625,1724457050476,-500.0,0.00013698,2]
[335708626,1724457050486,-3367.5,0.00013698,2]
[335708627,1724457050496,-1932.03,0.00013698,2]
[335708628,1724457050506,-500.0,0.00013698,2]
[335708629,1724457050515,-500.0,0.00013698,2]
[335708630,1724457050525,-500.0,0.00013698,2]
[335708631,1724457050534,-1157.06,0.00013698,2]
[335708632,1724457050543,-638.99,0.00013698,2]
[335708633,1724457050553,-500.0,0.00013698,2]
[335708634,1724457050562,-500.0,0.00013698,2]
[335708635,1724457050572,-500.0,0.00013698,2]
[335708636,1724457050582,-840.59,0.00013698,2]
[335708637,1724457050592,-679.43,0.00013698,2]
[335708638,1724457050602,-500.0,0.00013698,2]
[335708639,1724457050611,-518.43,0.00013698,2]
[335708640,1724457050622,-500.0,0.00013698,2]
[335708641,1724457050632,-500.0,0.00013698,2]
[335708642,1724457050640,-13324.41,0.00013698,2]
[335708643,1724457050650,-759.91,0.00013698,2]
[335708644,1724457050661,-500.0,0.00013698,2]
[335708645,1724457050670,-468.51483986,0.00013698,2]
[335708646,1724457050679,-500.0,0.00013698,2]
[335708647,1724457050687,-690.32,0.00013698,2]
[335708648,1724457050696,-332.70948275,0.00013698,2]
[335708649,1724457050706,-2726.84,0.00013698,2]
[335708650,1724457050716,-1468.89,0.00013698,2]
[335708651,1724457050726,-500.0,0.00013698,2]
[335708652,1724457050738,-500.0,0.00013698,2]
[335708653,1724457050749,-500.0,0.00013698,2]
[335708654,1724457050760,-577.47,0.00013698,2]
[335708655,1724457050769,-500.0,0.00013698,2]
[335708656,1724457050778,-6408.33,0.00013698,2]
[335708657,1724457050787,-575.36,0.00013698,2]
[335708658,1724457050797,-1367.59,0.00013698,2]
[335708659,1724457050807,-2421.26,0.00013698,2]
[335708660,1724457050817,-500.0,0.00013698,2]
[335708661,1724457050965,-3963.96,0.00013698,2]
[335708662,1724457050975,-749.42,0.00013698,2]
[335708663,1724457050984,-500.0,0.00013698,2]
[335708664,1724457050993,-1000.0,0.00013698,2]
[335708665,1724457051002,-500.0,0.00013698,2]
[335708666,1724457051012,-720.4,0.00013698,2]
[335708667,1724457051021,-500.0,0.00013698,2]
[335708668,1724457051031,-500.0,0.00013698,2]
[335708669,1724457051040,-1148.76,0.00013698,2]
[335708670,1724457051049,-500.0,0.00013698,2]
[335708671,1724457051059,-500.0,0.00013698,2]
[335708672,1724457051068,-500.0,0.00013698,2]
[335708673,1724457051078,-500.0,0.00013698,2]
[335708674,1724457051087,-7597.35,0.00013698,2]
[335708675,1724457051096,-1260.9,0.00013698,2]
[335708676,1724457051105,-1058.29,0.00013698,2]
[335708677,1724457051114,-519.28,0.00013698,2]
[335708678,1724457051123,-500.0,0.00013698,2]
[335708679,1724457051133,-500.0,0.00013698,2]
[335708680,1724457051142,-500.0,0.00013698,2]
[335708681,1724457051151,-500.0,0.00013698,2]
[335708682,1724457051160,-500.0,0.00013698,2]
[335708683,1724457051169,-748.83,0.00013698,2]
[335708684,1724457051178,-900.29,0.00013698,2]
[335708685,1724457051187,-500.0,0.00013698,2]
[335708686,1724457051196,-500.0,0.00013698,2]
[335708687,1724457051206,-5482.65,0.00013698,2]
[335708688,1724457051215,-500.0,0.00013698,2]
[335708689,1724457051228,-753.23,0.00013698,2]
[335708690,1724457051237,-500.0,0.00013698,2]
[335708691,1724457051247,-207.12393168,0.00013698,2]
[335708692,1724457051257,-500.73801096,0.00013698,2]
[335708693,1724457051267,-10196.76,0.00013698,2]
[335708694,1724457051276,-500.0,0.00013698,2]
[335708695,1724457051285,-500.0,0.00013698,2]
[335708696,1724457051294,-500.0,0.00013698,2]
[335708697,1724457051304,-500.0,0.00013698,2]
[335708698,1724457051314,-1254.55,0.00013698,2]
[335708699,1724457051323,-500.0,0.00013698,2]
[335708700,1724457051334,-500.0,0.00013698,2]
[335708701,1724457051345,-500.0,0.00013698,2]
[335708702,1724457051355,-500.0,0.00013698,2]
[335708703,1724457051365,-500.0,0.00013698,2]
[335708704,1724457051374,-1060.12,0.00013698,2]
[335708705,1724457051384,-500.0,0.00013698,2]
[335708706,1724457051393,-1060.12,0.00013698,2]
[335708707,1724457051403,-1060.12,0.00013698,2]
[335708708,1724457051412,-1060.12,0.00013698,2]
[335708709,1724457051421,-725.53,0.00013698,2]
[335708710,1724457051431,-500.0,0.00013698,2]
[335708711,1724457051441,-1060.12,0.00013698,2]
[335708712,1724457051450,-500.0,0.00013698,2]
[335708713,1724457051460,-1060.12,0.00013698,2]
[335708714,1724457051470,-1990.45,0.00013698,2]
[335708715,1724457051479,-1060.12,0.00013698,2]
[335708716,1724457051487,-1151.35,0.00013698,2]
[335708717,1724457051496,-1060.12,0.00013698,2]
[335708718,1724457051506,-1060.12,0.00013698,2]
[335708719,1724457051515,-1060.12,0.00013698,2]
[335708720,1724457051524,-1060.12,0.00013698,2]
[335708721,1724457051534,-1060.12,0.00013698,2]
[335708722,1724457051543,-1060.12,0.00013698,2]
[335708723,1724457051552,-500.0,0.00013698,2]
[335708724,1724457051562,-1060.12,0.00013698,2]
[335708725,1724457051571,-1060.12,0.00013698,2]
[335708726,1724457051581,-500.0,0.00013698,2]
[335708727,1724457051590,-500.0,0.00013698,2]
[335708728,1724457051599,-1060.12,0.00013698,2]
[335708729,1724457051608,-1060.12,0.00013698,2]
[335708730,1724457051617,-500.0,0.00013698,2]
[335708731,1724457051627,-500.0,0.00013698,2]
[335708732,1724457051636,-718.53,0.00013698,2]
[335708733,1724457051646,-500.0,0.00013698,2]
[335708734,1724457051656,-5032.41,0.00013698,2]
[335708735,1724457051665,-912.04,0.00013698,2]
[335708736,1724457051674,-500.0,0.00013698,2]
[335708737,1724457051684,-2713.29,0.00013698,2]
[335708738,1724457051693,-2286.6,0.00013698,2]
[335708739,1724457051704,-2252.53,0.00013698,2]
[335708740,1724457051715,-500.0,0.00013698,2]
[335708741,1724457051728,-500.0,0.00013698,2]
[335708742,1724457051740,-500.0,0.00013698,2]
[335708743,1724457051750,-506.04598366,0.00013698,2]
[335708744,1724457051762,-500.0,0.00013698,2]
[335708745,1724457051774,-12386.98,0.00013698,2]
[335708746,1724457051785,-500.0,0.00013698,2]
[335708747,1724457051794,-500.0,0.00013698,2]
[335708748,1724457051803,-500.0,0.00013698,2]
[335708749,1724457051812,-500.0,0.00013698,2]
[335708750,1724457051821,-500.0,0.00013698,2]
[335708751,1724457051831,-7043.23,0.00013698,2]
[335708752,1724457051840,-883.37,0.00013698,2]
[335708753,1724457051850,-1587.24,0.00013698,2]
[335708754,1724457051859,-500.0,0.00013698,2]
[335708755,1724457051868,-500.0,0.00013698,2]
[335708756,1724457051878,-500.0,0.00013698,2]
[335708757,1724457051887,-500.0,0.00013698,2]
[335708758,1724457051897,-500.0,0.00013698,2]
[335708759,1724457051906,-657.38,0.00013698,2]
[335708760,1724457051916,-500.0,0.00013698,2]
[335708761,1724457051925,-731.94,0.00013698,2]
[335708762,1724457051935,-500.0,0.00013698,2]
[335708763,1724457051944,-500.0,0.00013698,2]
[335708764,1724457051954,-500.0,0.00013698,2]
[335708765,1724457051964,-500.0,0.00013698,2]
[335708766,1724457051973,-500.0,0.00013698,2]
[335708767,1724457051983,-500.0,0.00013698,2]
[335708768,1724457051992,-1252.21,0.00013698,2]
[335708769,1724457052003,-500.0,0.00013698,2]
[335708770,1724457052012,-500.0,0.00013698,2]
[335708771,1724457052022,-500.0,0.00013698,2]
[335708772,1724457052031,-3842.15,0.00013698,2]
[335708773,1724457052042,-938.19,0.00013698,2]
[335708774,1724457052051,-500.0,0.00013698,2]
[335708775,1724457052061,-898.63,0.00013698,2]
[335708776,1724457052070,-500.0,0.00013698,2]
[335708777,1724457052079,-682.21,0.00013698,2]
[335708778,1724457052089,-500.0,0.00013698,2]
[335708779,1724457052099,-1080.0,0.00013698,2]
[335708780,1724457052108,-500.0,0.00013698,2]
[335708781,1724457052118,-500.0,0.00013698,2]
[335708782,1724457052127,-896.01,0.00013698,2]
[335708783,1724457052137,-500.0,0.00013698,2]
[335708784,1724457052146,-14271.93,0.00013698,2]
[335708785,1724457052156,-500.0,0.00013698,2]
[335708786,1724457052166,-1618.12,0.00013698,2]
[335708787,1724457052175,-903.77,0.00013698,2]
[335708788,1724457052185,-1344.49,0.00013698,2]
[335708789,1724457052194,-714.43,0.00013698,2]
[335708790,1724457052204,-2789.27,0.00013698,2]
[335708791,1724457052213,-500.0,0.00013698,2]
[335708792,1724457052222,-500.0,0.00013698,2]
[335708793,1724457052231,-687.36,0.00013698,2]
[335708794,1724457052241,-601.34,0.00013698,2]
[335708795,1724457052250,-500.0,0.00013698,2]
[335708796,1724457052259,-2078.3,0.00013698,2]
[335708797,1724457052268,-789.45,0.00013698,2]
[335708798,1724457052278,-1237.88,0.00013698,2]
[335708799,1724457052287,-978.57,0.00013698,2]
[335708800,1724457052295,-500.0,0.00013698,2]
[335708801,1724457052304,-500.0,0.00013698,2]
[335708802,1724457052314,-22342.93,0.00013698,2]
[335708803,1724457052323,-9517.66,0.00013698,2]
[335708804,1724457052332,-3689.76,0.00013698,2]
[335708805,1724457052342,-500.0,0.00013698,2]
[335708806,1724457052351,-500.0,0.00013698,2]
[335708807,1724457052360,-2315.38,0.00013698,2]
[335708808,1724457052369,-500.0,0.00013698,2]
[335708809,1724457052378,-728.58,0.00013698,2]
[335708810,1724457052387,-1293.72,0.00013698,2]
[335708811,1724457052396,-500.0,0.00013698,2]
[335708812,1724457052406,-500.0,0.00013698,2]
[335708813,1724457052415,-664.27,0.00013698,2]
[335708814,1724457052424,-500.0,0.00013698,2]
[335708815,1724457052433,-10312.48,0.00013698,2]
[335708816,1724457052442,-500.0,0.00013698,2]
[335708817,1724457052451,-4858.7,0.00013698,2]
[335708818,1724457052460,-514.37785923,0.00013698,2]
[335708819,1724457052469,-500.0,0.00013698,2]
[335708820,1724457052479,-730.56,0.00013698,2]
[335708821,1724457052488,-500.0,0.00013698,2]
[335708822,1724457052497,-789.79,0.00013698,2]
[335708823,1724457052507,-966.65,0.00013698,2]
[335708824,1724457052516,-2268.87,0.00013698,2]
[335708825,1724457052526,-500.0,0.00013698,2]
[335708826,1724457052535,-12535.96,0.00013698,2]
[335708827,1724457052547,-1471.17,0.00013698,2]
[335708828,1724457052556,-500.0,0.00013698,2]
[335708829,1724457052566,-2112.97,0.00013698,2]
[335708830,1724457052576,-500.0,0.00013698,2]
[335708831,1724457052586,-903.25,0.00013698,2]
[335708832,1724457052595,-583.2,0.00013698,2]
[335708833,1724457052605,-1313.88,0.00013698,2]
[335708834,1724457052615,-500.0,0.00013698,2]
[335708835,1724457052624,-2195.43,0.00013698,2]
[335708836,1724457052635,-500.0,0.00013698,2]
[335708837,1724457052644,-500.0,0.00013698,2]
[335708838,1724457052653,-500.0,0.00013698,2]
[335708839,1724457052662,-1397.57,0.00013698,2]
[335708840,1724457052672,-699.37,0.00013698,2]
[335708841,1724457052681,-500.0,0.00013698,2]
[335708842,1724457052691,-883.18,0.00013698,2]
[335708843,1724457052700,-500.0,0.00013698,2]
[335708844,1724457052711,-213.12551487,0.00013698,2]
[335708845,1724457052722,-500.0,0.00013698,2]
[335708846,1724457052734,-565.77,0.00013698,2]
[335708847,1724457052745,-856.8,0.00013698,2]
[335708848,1724457052754,-500.0,0.00013698,2]
[335708849,1724457052764,-500.0,0.00013698,2]
[335708850,1724457052773,-464.04485381,0.00013698,2]
[335708851,1724457052782,-500.0,0.00013698,2]
[335708852,1724457052791,-509.03,0.00013698,2]
[335708853,1724457052801,-2510.07,0.00013698,2]
[335708854,1724457052810,-3153.39,0.00013698,2]
[335708855,1724457052820,-500.0,0.00013698,2]
[335708856,1724457052830,-538.58,0.00013698,2]
[335708857,1724457052840,-161.58020554,0.00013698,2]
[335708858,1724457052850,-826.84,0.00013698,2]
[335708859,1724457052859,-826.84,0.00013698,2]
[335708860,1724457052869,-826.84,0.00013698,2]
[335708861,1724457052878,-826.84,0.00013698,2]
[335708862,1724457052888,-19748.42,0.00013698,2]
[335708863,1724457052898,-826.84,0.00013698,2]
[335708864,1724457052908,-252.85531781,0.00013698,2]
[335708865,1724457052917,-826.84,0.00013698,2]
[335708866,1724457052927,-500.0,0.00013698,2]
[335708867,1724457052937,-826.84,0.00013698,2]
[335708868,1724457052947,-826.84,0.00013698,2]
[335708869,1724457052957,-826.84,0.00013698,2]
[335708870,1724457052967,-826.84,0.00013698,2]
[335708871,1724457052978,-500.0,0.00013698,2]
[335708872,1724457052987,-826.84,0.00013698,2]
[335708873,1724457052997,-826.84,0.00013698,2]
[335708874,1724457053007,-826.84,0.00013698,2]
[335708875,1724457053017,-826.84,0.00013698,2]
[335708876,1724457053026,-501.15612593,0.00013698,2]
[335708877,1724457053035,-826.84,0.00013698,2]
[335708878,1724457053044,-500.0,0.00013698,2]
[335708879,1724457053054,-826.84,0.00013698,2]
[335708880,1724457053063,-826.84,0.00013698,2]
[335708881,1724457053073,-500.0,0.00013698,2]
[335708882,1724457053086,-826.84,0.00013698,2]
[335708883,1724457053095,-826.84,0.00013698,2]
[335708884,1724457053104,-826.84,0.00013698,2]
[335708885,1724457053114,-826.84,0.00013698,2]
[335708886,1724457053123,-826.84,0.00013698,2]
[335708887,1724457053132,-826.84,0.00013698,2]
[335708888,1724457053143,-827.04632755,0.00013698,2]
[335708889,1724457053153,-500.0,0.00013698,2]
[335708890,1724457053163,-983.01,0.00013698,2]